{"text_format":"1","workbook":"xlsx","n_sheets":7,"sheets":["1. Ano de Entrada e Integraliza","2. O que cursou","3. Botão de Cálculo","4. Equivalências Conquistadas","5. Disc a Cursar no Novo Curric","6. Resultado","Grade Novo Currículo"],"not_rendered":{"charts":0,"images":0,"macros":1,"external_links":0,"defined_names":4,"comments":0,"pivot_tables":2},"unopened":[],"bounds":{"document_bytes":16777216,"sheet_cells":100000,"rows_first":2000,"rows_last":500,"rows_between":2000,"halvings":0,"cell_chars":16384,"cell_head_chars":4096},"cells_cut":0,"cells_raw":0,"read":"whole","date_system":"1900"}

{"sheet":"1. Ano de Entrada e Integraliza","index":0,"n_rows":8,"n_cols":8,"rows_kept":8,"cut":false,"hidden":false,"merged":[[2,2,2,6],[5,1,5,6],[3,2,3,6],[6,2,6,6],[5,7,6,7]]}
[]
[]
[null,null,"Digite no campo ao lado o ano em que você entrou no curso:\n(somente o número do ano)"]
[null,null,"Exemplo:",null,null,null,null,2019]
[]
[null,"Digite no campo ao lado quantos créditos você já integralizou no curso:\n(somente o número dos créditos)"]
[null,null,"Essa informação você obtém no seu Histórico emitido pelo Cobalto\nObs: Se houver discipilnas de outros cursos, desconsiderar no somatório essas disciplinas"]
[null,null,null,null,null,null,"Exemplo:",60]

{"sheet":"2. O que cursou","index":1,"n_rows":109,"n_cols":5,"rows_kept":109,"cut":false,"hidden":false,"merged":[[1,2,3,4]]}
[]
[null,null,"No campo abaixo intitulado \"Cursou?\" insira um X naquele(s) componente(s) curricular(es) que você, conforme seu histórico do Cobalto, cursou ou está cursando e terá provável aprovação.\n\nObserve que há CÓDIGOS diferentes para disciplinas COM MESMO NOME. Cuide para marcar O CÓDIGO CORRETO."]
[]
[]
[null,null,"Exemplo"]
[null,null,1,"0000000","Disciplina cursada X"]
[null,null,"Cursou?","Código no seu histórico","Componente curricular"]
[null,null,null,12000262,"Química Geral"]
[null,null,null,12000227,"Química Geral"]
[null,null,null,12000343,"Química Geral e Inorgânica"]
[null,null,null,1650085,"Química Geral"]
[null,null,null,12000263,"Química Geral Experimental "]
[null,null,null,12000344,"Química Geral Experimental "]
[null,null,null,12000252,"Química Geral e Inorg. Exp."]
[null,null,null,1650086,"Química Geral e Experimental"]
[null,null,null,12000118,"Química Orgânica I "]
[null,null,null,12000105,"Química Orgânica I-B"]
[null,null,null,170067,"Química Orgânica I"]
[null,null,null,170056,"Química Orgânica I – L"]
[null,null,null,170040,"Química Orgânica I – B "]
[null,null,null,12000106,"Química Orgânica II-B"]
[null,null,null,170041,"Química Orgânica II-B"]
[null,null,null,170057,"Química Orgânica II-B"]
[null,null,null,12000108,"Análise Orgânica"]
[null,null,null,12000117,"Quím. Org. Experimental"]
[null,null,null,12000280,"Química Inorgânica 1 "]
[null,null,null,12000246,"Química Inorgânica I"]
[null,null,null,1650103,"Química Inorgânica 1 "]
[null,null,null,12000265,"Química Inorgânica 2 "]
[null,null,null,12000253,"Química Inorgânica II"]
[null,null,null,1650088,"Química Inorgânica 2 "]
[null,null,null,12000266,"Química Inorgânica Exp. 2"]
[null,null,null,1650089,"Química Inorgânica Exp. 2"]
[null,null,null,12000107,"Métodos Físicos de Análise I-B"]
[null,null,null,170061,"Métodos Físicos de Análise I-L"]
[null,null,null,12000275,"Química Analítica Clássica"]
[null,null,null,1650098,"Química Analítica Clássica"]
[null,null,null,12000278,"Físico-Química 1"]
[null,null,null,"D000284","Físico-Química 1"]
[null,null,null,12000268,"Físico-Química 2"]
[null,null,null,1650091,"Físico-Química 2"]
[null,null,null,12000303,"Físico-Química 3"]
[null,null,null,12000323,"Físico-Química III"]
[null,null,null,"D000509","Físico-Química 3"]
[null,null,null,1650092,"Físico-química Experimental 1"]
[null,null,null,1650029,"Físico-química Experimental 2"]
[null,null,null,"D000507","Físico-química Experimental 2"]
[null,null,null,12000270,"Química Verde"]
[null,null,null,1650093,"Química Verde"]
[null,null,null,12000277,"Química Ambiental"]
[null,null,null,1650100,"Química Ambiental"]
[null,null,null,12000034,"Bioquímica I"]
[null,null,null,12000030,"Bioquímica"]
[null,null,null,160015,"Bioquímica"]
[null,null,null,11100005,"Álgebra L. e  Geom. Analítica"]
[null,null,null,100045,"Álgebra L. e  Geom. Analítica"]
[null,null,null,11100026,"Estatística Básica"]
[null,null,null,100226,"Estatística Básica"]
[null,null,null,"D000357","Instrument. Para o Ens. De Química"]
[null,null,null,12000352,"Instrument. Para o Ens. De Química"]
[null,null,null,690009,"Projetos de Ensino de Química"]
[null,null,null,12000347,"Projetos de Ensino de Química"]
[null,null,null,12000258,"Projetos de Ensino de Química"]
[null,null,null,1650081,"Projetos de Ensino de Química"]
[null,null,null,690004,"Estágio Supervisionado I"]
[null,null,null,12000346,"Estágio Supervisionado I"]
[null,null,null,12000257,"Estágio Supervisionado I"]
[null,null,null,12000337,"Estágio Supervisionado II"]
[null,null,null,6690002,"Estágio Supervisionado II"]
[null,null,null,"D001101","Estágio Supervisionado II"]
[null,null,null,12000350,"Estágio Supervisionado IV"]
[null,null,null,"D001102","Estágio Supervisionado III"]
[null,null,null,12000338,"Estágio Supervisionado III"]
[null,null,null,690010,"Didática da Química"]
[null,null,null,12000353,"Didática da Química"]
[null,null,null,12000197,"Didática da Química"]
[null,null,null,690006,"Metodologia da Pesquisa em Educação Química"]
[null,null,null,1650082,"Metodologia da Pesquisa em Educação Química"]
[null,null,null,12000259,"Metodologia da Pesquisa em Educação Química"]
[null,null,null,12000349,"Metodologia da Pesquisa em Educação Química"]
[null,null,null,12000302,"Trabalho de Conclusão de Curso"]
[null,null,null,"D00508","Trabalho de Conclusão de Curso"]
[null,null,null,20000262,"Leitura e Produção de Textos"]
[null,null,null,1320185,"Leitura e Produção de Textos"]
[null,null,null,12000292,"Informática em Educação Química"]
[null,null,null,"D000358","Informática em Educação Química"]
[null,null,null,12000377,"História, Filosofia e Epistemologia da Ciência"]
[null,null,null,12000289,"História, Filosofia e Epistemologia da Ciência"]
[null,null,null,"D000283","História, Filosofia e Epistemologia da Ciência"]
[null,null,null,12000276,"Química Analítica Instrumental L"]
[null,null,null,12000345,"Química e Cotidiano"]
[null,null,null,360246,"Fundamentos SócioHistóricoFilosóficos"]
[null,null,null,17360022,"Fundamentos SócioHistóricoFilosóficos"]
[null,null,null,12000279,"Química Inorgânica Experimental 1"]
[null,null,null,350234,"Teoria e Prática Pedagógica"]
[null,null,null,17350029,"Teoria e Prática Pedagógica"]
[null,null,null,100301,"Cálculo 1"]
[null,null,null,11100058,"Cálculo 1"]
[null,null,null,90113,"Física Básica I"]
[null,null,null,11090032,"Física Básica I"]
[null,null,null,360245,"Fundamentos Psicológicos da Educação"]
[null,null,null,17360021,"Fundamentos Psicológicos da Educação"]
[null,null,null,11100059,"Cálculo 2"]
[null,null,null,11090033,"Física Básica II"]
[null,null,null,350233,"Educação Brasileira: Organ. E Políticas Públicas"]
[null,null,null,17350028,"Educação Brasileira: Organ. E Políticas Públicas"]
[null,null,null,17360009,"Educação Inclusiva: Pedagogia da diferença"]
[null,null,null,11090034,"Física Básica III"]
[null,null,null,20000084,"Língua Brasileira de Sinais I"]

{"sheet":"3. Botão de Cálculo","index":2,"n_rows":19,"n_cols":11,"rows_kept":19,"cut":false,"hidden":false,"merged":[]}
[]
[]
[]
[]
[]
[]
[]
[]
[]
[]
[]
[]
[]
[]
[null,null,null,null,null,null,null,null,null,null,"SE APARECER ALGUMA INFORMAÇÃO DE ERRO,"]
[]
[null,null,null,null,null,null,null,null,null,null,"PULE ESTA PLANILHA E VÁ PARA"]
[]
[null,null,null,null,null,null,null,null,null,null,"A PLANILHA \"4. EQUIVALÊNCIAS CONQUISTADAS\""]

{"sheet":"4. Equivalências Conquistadas","index":3,"n_rows":20,"n_cols":8,"rows_kept":20,"cut":false,"hidden":false,"merged":[]}
[null,"Equivalente","(Vários itens)"]
[]
[null,null,"Créditos","Semestre da Disciplina no Novo Curriculo"]
[null,"Total Geral"]
[]
[]
[null,null,null,null,null,null,null,"NÃO MEXA NESTA PLANILHA. "]
[]
[null,null,null,null,null,null,null,"ELA É APENAS PARA CONSULTA."]
[]
[]
[null,null,null,null,null,null,null,"NÃO DIGITE NADA NEM ALTERE NADA AQUI."]
[]
[null,null,null,null,null,null,null,"CASO NA PLANILHA ANTERIOR TENHA APARECIDO "]
[]
[null,null,null,null,null,null,null,"UMA MENSAGEM DE ERRO, SIGA OS PASSOS:"]
[]
[null,null,null,null,null,null,null,"1. SELECIONE E CLIQUE NA TABELA EM AZUL À ESQUERDA (EM QUALQUER PARTE DELA)."]
[null,null,null,null,null,null,null,"2. AO FAZER ISSO, PROVAVEMENTE NO MENU SUPERIOR ABRIRÁ UMA OPÇÃO CHAMADA DE \"TABELA DINÂMICA\""]
[null,null,null,null,null,null,null,"3. CLIQUE EM ATUALIZAR > ATUALIZAR TUDO"]

{"sheet":"5. Disc a Cursar no Novo Curric","index":4,"n_rows":55,"n_cols":8,"rows_kept":55,"cut":false,"hidden":false,"merged":[]}
[null,"Equivalente",0]
[]
[null,null,"Créditos","Semestre da Disciplina no Novo Curriculo"]
[null,"Matemática Elementar",4,1]
[null,"Química e Cotidiano",3,1]
[null,"Leitura e produção de textos",4,1,null,null,null,"NÃO MEXA NESTA PLANILHA. "]
[null,"Química Geral",6,1]
[null,"Fundamentos SócioHistóricoFilosóficos",4,1,null,null,null,"ELA É APENAS PARA CONSULTA."]
[null,"Química Geral Experimental",3,1]
[null,"Instrumentação para o Ensino de Química",4,2]
[null,"História, Filosofia e Epistemologia da Ciência",4,2,null,null,null,"NÃO DIGITE NADA NEM ALTERE NADA AQUI."]
[null,"Teoria e Prática Pedagógica",4,2]
[null,"Química Inorgânica 1",3,2]
[null,"Geometria Analítica",4,2]
[null,"Química Inorgânica Experimental 1",3,2]
[null,"Estatística I",2,2]
[null,"Química Orgânica 1",4,2]
[null,"Cálculo 1",4,3]
[null,"Química Analítica Clássica Teórica",3,3]
[null,"Química Inorgânica 2",3,3]
[null,"Projetos em Ensino de Química",3,3]
[null,"Fundamentos Psicológicos da Educação",4,3]
[null,"Física Básica I",4,3]
[null,"Química Inorgânica Experimental 2",3,3]
[null,"Química Analítica Clássica Experimental",3,3]
[null,"Química Orgânica 2A",4,3]
[null,"Cálculo 2",4,4]
[null,"Estágio Supervisionado I",6,4]
[null,"Interação Universidade-Escola",4,4]
[null,"Informática em Educação Química",3,4]
[null,"Educação Brasileira: Organ. E Políticas Públicas",4,4]
[null,"Química Orgânica Experimental",3,4]
[null,"Educação Inclusiva: Pedagogia da diferença",4,4]
[null,"Física Básica II",4,4]
[null,"Língua Brasileira de Sinais I",4,5]
[null,"Física Básica III",4,5]
[null,"Didática da Química I",4,5]
[null,"Métodos Físicos de Análise Orgânica 1",4,5]
[null,"Físico-Química 1",4,5]
[null,"Estágio Supervisionado II",8,5]
[null,"Bioquímica",6,5]
[null,"Físico-Química Experimental 1",3,6]
[null,"Estágio Supervisionado III",5,6]
[null,"Análise Orgânica",4,6]
[null,"Química Analítica Instrumental L",4,6]
[null,"Química Verde",3,6]
[null,"Didática da Química II",3,6]
[null,"Físico-Química 2",4,7]
[null,"Química Ambiental",4,7]
[null,"Metodologia da Pesquisa em Educação Química",3,7]
[null,"Estágio Supervisionado IV",8,7]
[null,"Físico-Química 3",3,8]
[null,"Trabalho de Conclusão de Curso (TCC)",2,8]
[null,"Físico-Química Experimental 2",3,8]
[null,"Total Geral",198,204]

{"sheet":"6. Resultado","index":5,"n_rows":16,"n_cols":15,"rows_kept":16,"cut":false,"hidden":false,"merged":[[4,2,4,9],[6,6,6,9],[10,4,10,9],[15,1,15,13],[14,14,16,16]]}
[]
[]
[]
[]
[null,null,"O seu currículo ATUAL tem um total de créditos a cursar em disciplinas de:",null,null,null,null,null,null,null,{"$f":"IF('1. Ano de Entrada e Integraliza'!H3>=2019,\"201\",(IF('1. Ano de Entrada e Integraliza'!H3=\"\",\"--\",\"170\")))","v":"--"},"créditos a cursar"]
[]
[null,null,null,null,"Com os ",{"$f":"IF('1. Ano de Entrada e Integraliza'!H6=\"\",\"--\",'1. Ano de Entrada e Integraliza'!H6)","v":"--"},"créditos que você já integralizou, faltam:",null,null,null,{"$f":"IF('1. Ano de Entrada e Integraliza'!H3=\"\", \"--\",(IF(F7=\"--\",\"--\", K5-F7)))","v":"--"},"créditos a cursar"]
[]
[]
[]
[null,null,null,null,"Migrando para o novo currículo, você ainda terá de cursar:",null,null,null,null,null,{"$f":"IF('1. Ano de Entrada e Integraliza'!H3=\"\", \"--\", (IF(K7=\"--\", \"--\", (GETPIVOTDATA(\"Créditos\",'5. Disc a Cursar no Novo Curric'!$B$3)))))","v":"--"},"créditos"]
[]
[]
[]
[null,null,null,null,"Ou seja: ",null,null,null,null,null,null,null,null,null,{"$f":"IF(K11=\"--\", \"--\", (IF(K11<=K7,\"MIGRAÇÃO DE CURRÍCULO\", \"PERMANÊNCIA NO CURRÍCULO EM QUE VOCÊ SE ENCONTRA\")))","v":"--"}]
[null,"Se as informações que você inseriu estiverem corretas e não houver alterações na presente proposta, para você é mais indicada a"]

{"sheet":"Grade Novo Currículo","index":6,"n_rows":72,"n_cols":16,"rows_kept":72,"cut":false,"hidden":true,"merged":[[8,0,9,0],[37,0,38,0],[49,0,50,0],[29,0,30,0],[59,0,60,0],[42,0,44,0],[68,0,69,0],[54,0,55,0],[62,0,63,0],[33,0,35,0],[46,0,47,0],[56,0,57,0],[33,9,35,9],[33,10,35,10],[33,11,35,11],[17,0,18,0],[20,0,21,0],[22,0,23,0],[31,0,32,0],[33,1,35,1],[33,2,35,2],[33,3,35,3],[33,4,35,4],[33,5,35,5],[33,6,35,6],[33,7,35,7],[33,8,35,8],[31,7,32,7],[31,8,32,8],[31,9,32,9],[31,10,32,10],[31,11,32,11],[22,6,23,6],[22,7,23,7],[22,8,23,8],[22,9,23,9],[68,6,69,6],[68,7,69,7],[68,8,69,8],[68,9,69,9],[68,10,69,10],[68,11,69,11],[68,1,69,1],[68,2,69,2],[68,3,69,3],[68,4,69,4],[68,5,69,5],[62,8,63,8],[62,9,63,9],[62,10,63,10],[62,11,63,11],[62,1,63,1],[62,2,63,2],[62,3,63,3],[62,4,63,4],[62,5,63,5],[62,6,63,6],[62,7,63,7],[59,8,60,8],[59,9,60,9],[59,10,60,10],[59,11,60,11],[56,7,57,7],[56,8,57,8],[56,9,57,9],[56,10,57,10],[56,11,57,11],[59,1,60,1],[59,2,60,2],[59,3,60,3],[59,4,60,4],[59,5,60,5],[54,8,55,8],[54,9,55,9],[54,10,55,10],[54,11,55,11],[56,1,57,1],[56,2,57,2],[56,3,57,3],[56,4,57,4],[56,5,57,5],[56,6,57,6],[54,1,55,1],[54,2,55,2],[54,3,55,3],[54,4,55,4],[54,5,55,5],[54,6,55,6],[54,7,55,7],[59,6,60,6],[59,7,60,7],[49,8,50,8],[49,9,50,9],[49,10,50,10],[49,11,50,11],[46,7,47,7],[46,8,47,8],[46,9,47,9],[46,10,47,10],[46,11,47,11],[49,1,50,1],[49,2,50,2],[49,3,50,3],[49,4,50,4],[49,5,50,5],[42,8,44,8],[42,9,44,9],[42,10,44,10],[42,11,44,11],[46,1,47,1],[46,2,47,2],[46,3,47,3],[46,4,47,4],[46,5,47,5],[46,6,47,6],[42,1,44,1],[42,2,44,2],[42,3,44,3],[42,4,44,4],[42,5,44,5],[42,6,44,6],[42,7,44,7],[49,6,50,6],[49,7,50,7],[37,6,38,6],[37,7,38,7],[37,8,38,8],[37,9,38,9],[37,10,38,10],[37,11,38,11],[37,1,38,1],[37,2,38,2],[37,3,38,3],[37,4,38,4],[37,5,38,5],[31,12,32,12],[29,8,30,8],[29,9,30,9],[29,10,30,10],[29,11,30,11],[31,1,32,1],[31,2,32,2],[31,3,32,3],[31,4,32,4],[31,5,32,5],[31,6,32,6],[29,1,30,1],[29,2,30,2],[29,3,30,3],[29,4,30,4],[29,5,30,5],[29,6,30,6],[29,7,30,7],[22,10,23,10],[22,11,23,11],[20,7,21,7],[20,8,21,8],[20,9,21,9],[20,10,21,10],[20,11,21,11],[22,1,23,1],[22,2,23,2],[22,3,23,3],[22,4,23,4],[22,5,23,5],[17,8,18,8],[17,9,18,9],[17,10,18,10],[17,11,18,11],[20,1,21,1],[20,2,21,2],[20,3,21,3],[20,4,21,4],[20,5,21,5],[20,6,21,6],[17,1,18,1],[17,2,18,2],[17,3,18,3],[17,4,18,4],[17,5,18,5],[17,6,18,6],[17,7,18,7],[8,6,9,6],[8,7,9,7],[8,8,9,8],[8,9,9,9],[8,10,9,10],[8,11,9,11],[8,1,9,1],[8,2,9,2],[8,3,9,3],[8,4,9,4],[8,5,9,5]]}
["Equivalente","Posição do Componente na Tabela","Código","Depto ou Unidade*","Componente curricular","Cr","T","E","P","EAD","EXT","CH","Pré-Requisito","Semestre"]
[{"$f":"IF('2. O que cursou'!C8,1,(IF('2. O que cursou'!C9,1,(IF('2. O que cursou'!C10,1,(IF('2. O que cursou'!C11,1,0)))))))","v":0},1,"NOVO","CCQFA","Química Geral",6,6,0,0,0,0,90,0,1]
[{"$f":"IF('2. O que cursou'!C12,1,(IF('2. O que cursou'!C13,1,(IF('2. O que cursou'!C14,1,(IF('2. O que cursou'!C15,1,0)))))))","v":0},2,"NOVO","CCQFA","Química Geral Experimental",3,0,0,3,0,0,45,0,1]
[{"$f":"IF('2. O que cursou'!C91,1,0)","v":0},3,"NOVO","CCQFA","Química e Cotidiano",3,3,0,0,0,0,60,0,1]
[{"$f":"IF('2. O que cursou'!C55,1,(IF('2. O que cursou'!C56,1,0)))","v":0},4,11100066,"DME","Matemática Elementar",4,4,0,0,0,0,60,0,1]
[{"$f":"IF('2. O que cursou'!C93,1,(IF('2. O que cursou'!C92,1,0)))","v":0},5,17360022,"DFE","Fundamentos SócioHistóricoFilosóficos",4,4,0,0,0,0,60,0,1,null,"x"]
[{"$f":"IF('2. O que cursou'!C83,1,(IF('2. O que cursou'!C84,1,0)))","v":0},6,20000262,"CLC","Leitura e produção de textos",4,4,0,0,0,0,60,0,1]
[{"$f":"IF('2. O que cursou'!C26,1,(IF('2. O que cursou'!C27,1,(IF('2. O que cursou'!C28,1,0)))))","v":0},7,"NOVO","CCQFA","Química Inorgânica 1",3,3,0,0,0,0,45,1,2]
[{"$f":"IF('2. O que cursou'!C94,1,0)","v":0},8,12000279,"CCQFA","Química Inorgânica Experimental 1",3,0,0,3,0,0,45,1,2]
[null,null,null,null,null,null,null,null,null,null,null,null,2,2]
[{"$f":"IF('2. O que cursou'!C16,1,(IF('2. O que cursou'!C17,1,(IF('2. O que cursou'!C18,1,(IF('2. O que cursou'!C19,1,(IF('2. O que cursou'!C20,1,0)))))))))","v":0},9,"NOVO","CCQFA","Química Orgânica 1",4,4,0,0,0,0,60,1,2]
[{"$f":"IF('2. O que cursou'!C59,1,(IF('2. O que cursou'!C60,1,0)))","v":0},10,"NOVO","CCQFA","Instrumentação para o Ensino de Química",4,2,0,1,0,1,60,0,2]
[{"$f":"IF('2. O que cursou'!C87,1,(IF('2. O que cursou'!C88,1,(IF('2. O que cursou'!C89,1,0)))))","v":0},11,"NOVO","CCQFA","História, Filosofia e Epistemologia da Ciência",4,2,0,1,0,1,60,0,2]
[{"$f":"IF('2. O que cursou'!C96,1,IF('2. O que cursou'!C95,1,0))","v":0},12,17350029,"DE","Teoria e Prática Pedagógica",4,4,0,0,0,0,60,0,2]
[{"$f":"IF('2. O que cursou'!C57,1,(IF('2. O que cursou'!C58,1,0)))","v":0},13,11100062,"DME","Estatística I",2,2,0,0,0,0,30,0,2]
[{"$f":"IF('2. O que cursou'!C55,1,(IF('2. O que cursou'!C56,1,0)))","v":0},14,11100009,"DME","Geometria Analítica",4,4,0,0,0,0,60,0,2]
[{"$f":"IF('2. O que cursou'!C29,1,(IF('2. O que cursou'!C30,1,(IF('2. O que cursou'!C31,1,0)))))","v":0},15,"NOVO","CCQFA","Química Inorgânica 2",3,3,0,0,0,0,45,7,3]
[{"$f":"IF('2. O que cursou'!C32,1,(IF('2. O que cursou'!C33,1,0)))","v":0},16,"NOVO","CCQFA","Química Inorgânica Experimental 2",3,0,0,3,0,0,45,7,3]
[null,null,null,null,null,null,null,null,null,null,null,null,8,3]
[{"$f":"IF('2. O que cursou'!C21,1,(IF('2. O que cursou'!C22,1,(IF('2. O que cursou'!C23,1,0)))))","v":0},17,"NOVO","CCQFA","Química Orgânica 2A",4,0,0,0,0,0,60,9,3]
[{"$f":"IF('2. O que cursou'!C36,1,(IF('2. O que cursou'!C37,1,0)))","v":0},18,"NOVO","CCQFA","Química Analítica Clássica Teórica",3,3,0,0,0,0,45,1,3]
[null,null,null,null,null,null,null,null,null,null,null,null,2,3]
[{"$f":"IF('2. O que cursou'!C36,1,(IF('2. O que cursou'!C37,1,0)))","v":0},19,"NOVO","CCQFA","Química Analítica Clássica Experimental",3,0,0,3,0,0,45,1,3]
[null,null,null,null,null,null,null,null,null,null,null,null,2,3]
[{"$f":"IF('2. O que cursou'!C61,1,(IF('2. O que cursou'!C62,1,(IF('2. O que cursou'!C63,1,(IF('2. O que cursou'!C64,1,0)))))))","v":0},20,"NOVO","CCQFA","Projetos em Ensino de Química",3,3,0,0,0,0,45,10,3]
[{"$f":"IF('2. O que cursou'!C98,1,(IF('2. O que cursou'!C97,1,0)))","v":0},21,11100058,"DME","Cálculo 1",4,4,0,0,0,0,60,4,3]
[{"$f":"IF('2. O que cursou'!C100,1,IF('2. O que cursou'!C99,1,0))","v":0},22,11090032,"DF","Física Básica I",4,4,0,0,0,0,60,0,3]
[{"$f":"IF('2. O que cursou'!C102,1,IF('2. O que cursou'!C101,1,0))","v":0},23,17360021,"DFE","Fundamentos Psicológicos da Educação",4,4,0,0,0,0,60,0,3]
[0,24,"NOVO","CCQFA","Química Orgânica Experimental",3,0,0,3,0,0,45,9,4]
[0,25,"NOVO","CCQFA","Interação Universidade-Escola",4,0,0,1,0,3,60,11,4]
[null,null,null,null,null,null,null,null,null,null,null,null,1,4]
[{"$f":"IF('2. O que cursou'!C85,1,(IF('2. O que cursou'!C86,1,0)))","v":0},26,12000378,"CCQFA","Informática em Educação Química",3,0,0,3,0,0,45,1,4]
[null,null,null,null,null,null,null,null,null,null,null,null,null,4]
[{"$f":"IF('2. O que cursou'!C65,1,(IF('2. O que cursou'!C66,1,(IF('2. O que cursou'!C67,1,0)))))","v":0},27,"NOVO","CCQFA","Estágio Supervisionado I",6,0,0,3,0,3,90,10,4]
[null,null,null,null,null,null,null,null,null,null,null,null,9,4]
[null,null,null,null,null,null,null,null,null,null,null,null,7,4]
[{"$f":"IF('2. O que cursou'!C103,1,0)","v":0},28,11100059,"DME","Cálculo 2",4,4,0,0,0,0,60,21,4]
[{"$f":"IF('2. O que cursou'!C104,1,0)","v":0},29,11090033,"DF","Física Básica II",4,4,0,0,0,0,60,21,4]
[null,null,null,null,null,null,null,null,null,null,null,null,22,4]
[{"$f":"IF('2. O que cursou'!C106,1,IF('2. O que cursou'!C105,1,0))","v":0},30,17350028,"DE","Educação Brasileira: Organ. E Políticas Públicas",4,4,0,0,0,0,60,0,4]
[{"$f":"IF('2. O que cursou'!C107,1,0)","v":0},31,17360009,"DFE","Educação Inclusiva: Pedagogia da diferença",4,4,0,0,0,0,60,0,4]
[{"$f":"IF('2. O que cursou'!C34,1,(IF('2. O que cursou'!C35,1,0)))","v":0},32,"NOVO","CCQFA","Métodos Físicos de Análise Orgânica 1",4,4,0,0,0,0,60,17,5]
[{"$f":"IF('2. O que cursou'!C38,1,(IF('2. O que cursou'!C39,1,0)))","v":0},33,"NOVO","CCQFA","Físico-Química 1",4,4,0,0,0,0,60,1,5]
[null,null,null,null,null,null,null,null,null,null,null,null,2,5]
[null,null,null,null,null,null,null,null,null,null,null,null,21,5]
[{"$f":"IF('2. O que cursou'!C52,1,(IF('2. O que cursou'!C54,1,(IF('2. O que cursou'!C53,1,0)))))","v":0},34,1200030,"CCQFA","Bioquímica",6,4,0,2,0,0,90,9,5]
[{"$f":"IF('2. O que cursou'!C74,1,(IF('2. O que cursou'!C75,1,(IF('2. O que cursou'!C76,1,0)))))","v":0},35,"NOVO","CCQFA","Didática da Química I",4,4,0,0,0,0,60,26,5]
[null,null,null,null,null,null,null,null,null,null,null,null,10,5]
[{"$f":"IF('2. O que cursou'!C68,1,(IF('2. O que cursou'!C69,1,(IF('2. O que cursou'!C70,1,0)))))","v":0},36,"NOVO","CCQFA","Estágio Supervisionado II",8,0,0,5,0,3,120,27,5]
[{"$f":"IF('2. O que cursou'!C108,1,0)","v":0},37,11090034,"DF","Física Básica III",4,4,0,0,0,0,60,29,5]
[null,null,null,null,null,null,null,null,null,null,null,null,28,5]
[{"$f":"IF('2. O que cursou'!C109,1,0)","v":0},38,20000084,"CLC","Língua Brasileira de Sinais I",4,4,0,0,0,0,60,0,5]
[{"$f":"IF('2. O que cursou'!C45,1,0)","v":0},39,12000217,"CCQFA","Físico-Química Experimental 1",3,0,0,3,0,0,45,33,6]
[{"$f":"IF('2. O que cursou'!C24,1,(IF('2. O que cursou'!C25,1,0)))","v":0},40,"NOVO","CCQFA","Análise Orgânica",4,0,0,4,0,0,60,32,6]
[{"$f":"IF('2. O que cursou'!C48,1,(IF('2. O que cursou'!C49,1,0)))","v":0},41,"NOVO","CCQFA","Química Verde",3,2,0,0,0,1,45,1,6]
[null,null,null,null,null,null,null,null,null,null,null,null,2,6]
[{"$f":"IF('2. O que cursou'!C90,1,0)","v":0},42,"NOVO","CCQFA","Química Analítica Instrumental L",4,2,0,2,0,0,60,18,6]
[null,null,null,null,null,null,null,null,null,null,null,null,19,6]
[0,43,"NOVO","CCQFA","Didática da Química II",3,3,0,0,0,0,45,35,6]
[0,44,"NOVO","CCQFA","Estágio Supervisionado III",5,0,0,2,0,3,75,36,6]
[null,null,null,null,null,null,null,null,null,null,null,null,31,6]
[{"$f":"IF('2. O que cursou'!C40,1,(IF('2. O que cursou'!C41,1,0)))","v":0},45,"NOVO","CCQFA","Físico-Química 2",4,4,0,0,0,0,60,33,7]
[{"$f":"IF('2. O que cursou'!C50,1,(IF('2. O que cursou'!C51,1,0)))","v":0},46,"NOVO","CCQFA","Química Ambiental",4,2,0,0,0,2,60,41,7]
[null,null,null,null,null,null,null,null,null,null,null,null,18,7]
[{"$f":"IF('2. O que cursou'!C77,1,(IF('2. O que cursou'!C78,1,(IF('2. O que cursou'!C79,1,(IF('2. O que cursou'!C80,1,0)))))))","v":0},47,"NOVO","CCQFA","Metodologia da Pesquisa em Educação Química",3,3,0,0,0,0,45,36,7]
[{"$f":"IF('2. O que cursou'!C71,1,(IF('2. O que cursou'!C72,1,(IF('2. O que cursou'!C73,1,0)))))","v":0},48,"NOVO","CCQFA","Estágio Supervisionado IV",8,0,0,5,0,3,120,36,7]
[null,49,null,null,"Optativa 1",3,3,0,0,0,0,45,0,7]
[{"$f":"IF('2. O que cursou'!C42,1,(IF('2. O que cursou'!C43,1,(IF('2. O que cursou'!C44,1,0)))))","v":0},50,"NOVO","CCQFA","Físico-Química 3",3,3,0,0,0,0,45,45,8]
[{"$f":"IF('2. O que cursou'!C46,1,(IF('2. O que cursou'!C47,1,0)))","v":0},51,12000218,"CCQFA","Físico-Química Experimental 2",3,0,0,3,0,0,45,45,8]
[null,null,null,null,null,null,null,null,null,null,null,null,39,8]
[{"$f":"IF('2. O que cursou'!C81,1,(IF('2. O que cursou'!C82,1,0)))","v":0},52,12000351,"CCQFA","Trabalho de Conclusão de Curso (TCC)",2,0,0,2,0,0,30,47,8]
[null,53,null,null,"Optativa 2",3,3,0,0,0,0,45,0,8]